bitfinex/quotes_SOLUSD_20250930
["timestamp","ask_amount","ask_price","bid_price","bid_amount"]
[1759242242261,38.49549052,207.86,207.68,13.59559401]
[1759242242460,3.81799072,207.83,207.72,34.39559401]
[1759242242661,19.84,207.82,207.72,34.39559401]
[1759242242846,19.84,207.82,207.66,13.59559401]
[1759242243045,6.53500791,207.81,207.7,13.59559401]
[1759242243248,6.53500791,207.78,207.7,13.59559401]
[1759242243560,20.8,207.79,207.7,13.59559401]
[1759242243767,20.8,207.79,207.7,27.78915732]
[1759242243768,6.53500791,207.76,207.7,27.78915732]
[1759242243948,6.53500791,207.75,207.7,13.59559401]
[1759242244149,6.53500791,207.76,207.72,13.59559401]
[1759242244545,6.53500791,207.74,207.69,13.59559401]
[1759242244746,6.53500791,207.72,207.66,4.81548847]
[1759242245146,6.53500791,207.73,207.66,4.81548847]
[1759242245349,6.53500791,207.71,207.65,13.59559401]
[1759242245566,6.53500791,207.69,207.61,13.59559401]
[1759242245745,6.53500791,207.68,207.61,13.59559401]
[1759242245946,6.53500791,207.69,207.61,13.59559401]
[1759242246157,6.53500791,207.66,207.59,4.81718772]
[1759242246354,11.35064613,207.66,207.57,13.59559401]
[1759242246558,6.53500791,207.64,207.57,14.56583855]
[1759242246758,6.53500791,207.64,207.56,37.66236949]
[1759242246964,6.53500791,207.65,207.57,13.59559401]
[1759242248558,6.53500791,207.65,207.59,13.59559401]
[1759242248759,6.53500791,207.65,207.56,32.84448551]
[1759242248760,6.53500791,207.64,207.57,4.81764755]
[1759242248951,4.81566235,207.66,207.58,13.59559401]
[1759242249252,6.53500791,207.63,207.58,13.59559401]
[1759242249653,20.8,207.66,207.58,13.59559401]
[1759242249878,6.53500791,207.63,207.58,13.59559401]
[1759242250258,6.53500791,207.59,207.55,0.2]
[1759242250464,6.53500791,207.58,207.55,0.2]
[1759242251551,6.53500791,207.56,207.55,0.2]
[1759242252978,11.35289189,207.56,207.55,0.2]
[1759242254271,11.35289189,207.56,207.55,1e-08]
[1759242255180,14.54801013,207.56,207.55,1e-08]
[1759242255358,18.54350065,207.56,207.55,1e-08]
[1759242255877,53.46350065,207.56,207.55,1e-08]
[1759242257058,20.8,207.53,207.51,0.2]
[1759242257260,30.53012615,207.52,207.51,0.2]
[1759242258261,27.33500791,207.52,207.51,0.2]
[1759242258648,23.99511824,207.52,207.51,0.2]
[1759242258862,32.15382055,207.52,207.51,0.2]
[1759242259077,35.34893879,207.52,207.51,0.2]
[1759242259460,63.69393088,207.52,207.51,0.2]
[1759242259976,70.22893879,207.52,207.51,0.2]
[1759242261253,76.7639467,207.52,207.51,0.2]
[1759242261656,88.81097831,207.52,207.49,1.66325427]
[1759242261892,20.8,207.49,207.46,0.2]
[1759242262056,27.33500791,207.47,207.46,0.2]
[1759242262263,30.53012615,207.47,207.46,0.2]
[1759242263003,35.35010012,207.47,207.46,0.2]
[1759242263365,14.55010012,207.47,207.46,0.2]
[1759242264181,27.33500791,207.43,207.41,0.2]
[1759242264487,62.21500791,207.43,207.41,0.2]
[1759242264687,41.41500791,207.43,207.41,0.2]
[1759242264864,41.41500791,207.43,207.4,1e-08]
[1759242264865,4.8213683,207.41,207.4,1e-08]
[1759242265067,56.26321773,207.41,207.34,0.2]
[1759242265399,6.53500791,207.35,207.34,0.2]
[1759242265566,41.41500791,207.35,207.34,0.2]
[1759242266680,6.53500791,207.35,207.34,0.2]
[1759242266991,6.53500791,207.37,207.34,5.02299604]
[1759242267188,6.53500791,207.38,207.35,13.59559401]
[1759242267489,6.53500791,207.39,207.35,13.59559401]
[1759242268079,6.53500791,207.38,207.35,13.59559401]
[1759242268279,6.53500791,207.38,207.35,18.41813453]
[1759242269089,6.53500791,207.36,207.34,0.2]
[1759242269275,6.53500791,207.35,207.34,0.2]
[1759242269788,34.92,207.35,207.34,0.2]
[1759242269982,6.53500791,207.35,207.34,0.2]
[1759242270387,11.35777135,207.35,207.34,0.2]
[1759242271394,6.53500791,207.35,207.34,0.2]
[1759242271576,15.14151635,207.35,207.34,0.2]
[1759242271778,11.35777135,207.35,207.34,0.2]
[1759242273169,6.53500791,207.35,207.34,0.2]
[1759242273479,41.45500791,207.35,207.34,0.2]
[1759242275190,46.27777135,207.35,207.34,0.2]
[1759242276015,46.27777135,207.35,207.3,0.2]
[1759242276016,20.8,207.32,207.3,0.2]
[1759242276300,6.53500791,207.36,207.3,0.2]
[1759242276301,46.27870189,207.31,207.3,0.2]
[1759242276600,46.29870189,207.31,207.3,0.2]
[1759242280299,46.27870189,207.31,207.3,0.2]
[1759242283673,46.27870189,207.31,207.3,1e-08]
[1759242285805,11.35870189,207.31,207.3,1e-08]
[1759242286128,46.27870189,207.31,207.3,1e-08]
[1759242287191,46.27870189,207.31,207.23,0.1]
[1759242287192,20.8,207.28,207.23,0.1]
[1759242287402,27.33500791,207.24,207.23,0.1]
[1759242287708,62.25500791,207.24,207.23,0.1]
[1759242288007,6.53500791,207.24,207.23,0.1]
[1759242288410,41.45500791,207.24,207.23,0.1]
[1759242289705,6.53500791,207.24,207.23,4.92555614]
[1759242289906,6.53500791,207.24,207.23,0.1]
[1759242290107,34.92,207.25,207.23,4.92546268]
[1759242290308,41.45500791,207.25,207.23,0.1]
[1759242290513,6.53500791,207.24,207.23,0.1]
[1759242291007,6.53500791,207.24,207.23,4.92555021]
[1759242291188,34.92,207.25,207.23,0.1]
[1759242291393,6.53500791,207.24,207.23,0.1]
[1759242292087,20.8,207.29,207.24,13.59559401]
[1759242292305,6.53500791,207.27,207.24,13.59559401]
[1759242292721,34.92,207.28,207.24,4.82516773]
[1759242293028,41.45500791,207.29,207.24,4.82516773]
[1759242293323,6.53500791,207.28,207.24,13.59559401]
[1759242293528,6.53500791,207.27,207.24,13.59559401]
[1759242293727,41.45500791,207.27,207.24,13.59559401]
[1759242294024,34.92,207.27,207.24,13.59559401]
[1759242294410,41.45500791,207.29,207.24,13.59559401]
[1759242294811,6.53500791,207.29,207.25,4.82509047]
[1759242295120,34.92,207.29,207.26,13.59559401]
[1759242295310,6.53500791,207.28,207.23,0.1]
[1759242295511,34.92,207.31,207.23,0.1]
[1759242295708,6.53500791,207.3,207.23,4.92547085]
[1759242295916,6.53500791,207.29,207.23,4.92547085]
[1759242296306,4.43145147,207.29,207.23,4.92547085]
[1759242296709,34.92,207.31,207.24,13.59559401]
[1759242296922,39.35145147,207.31,207.26,13.59559401]
[1759242297122,44.17518731,207.31,207.26,13.59559401]
[1759242297331,4.43145147,207.29,207.24,13.59559401]
[1759242298135,4.43145147,207.29,207.23,0.1]
[1759242298312,39.35145147,207.28,207.23,0.1]
[1759242298507,4.43145147,207.27,207.23,0.1]
[1759242298835,9.256286,207.27,207.23,0.1]
[1759242299027,4.43145147,207.26,207.23,0.1]
[1759242299230,4.82483453,207.27,207.23,0.1]
[1759242299231,4.43145147,207.25,207.23,0.1]
[1759242300317,4.43145147,207.24,207.23,0.1]
[1759242300723,20.8,207.22,207.18,0.1]
[1759242300926,25.23145147,207.19,207.18,0.1]
[1759242301838,4.43145147,207.19,207.18,0.1]
[1759242302716,25.23145147,207.19,207.18,0.1]
[1759242302927,44.17793923,207.19,207.18,0.1]
[1759242303332,47.36707817,207.19,207.18,0.1]
[1759242303633,25.23145147,207.17,207.16,0.1]
[1759242303839,20.8,207.16,207.11,0.1]
[1759242304042,60.15145147,207.16,207.11,0.1]
[1759242304617,25.23145147,207.12,207.11,0.1]
[1759242304831,64.97957043,207.12,207.11,0.1]
[1759242305233,68.16721018,207.12,207.11,1e-08]
[1759242305541,80.23750759,207.12,207.09,1e-08]
[1759242305720,25.23145147,207.1,207.09,1e-08]
[1759242306229,60.15145147,207.1,207.09,1e-08]
[1759242306430,55.72,207.1,207.09,1e-08]
[1759242306739,25.23145147,207.1,207.09,1e-08]
[1759242306917,64.98003669,207.1,207.09,1e-08]
[1759242307318,68.87031349,207.1,207.09,1e-08]
[1759242307818,64.43886202,207.1,207.09,1e-08]
[1759242308019,108.2692581,207.1,206.95,13.69559401]
[1759242308219,4.43145147,207.01,206.95,0.1]
[1759242308437,34.92,207.0,206.95,0.1]
[1759242308628,34.92,207.0,206.95,19.70116146]
[1759242308824,34.92,207.0,206.96,18.42733995]
[1759242309139,39.77045116,207.02,206.95,4.93201146]
[1759242309342,4.43145147,207.01,206.95,0.1]
[1759242309742,4.43145147,207.0,206.95,0.1]
[1759242309947,39.37145147,206.99,206.95,0.1]
[1759242310945,4.83138467,206.98,206.95,0.1]
[1759242311438,4.43145147,206.93,206.72,54.94]
[1759242311636,16.90984635,206.98,206.72,54.94]
[1759242311637,4.43145147,206.9,206.75,21.80934982]
[1759242311850,16.90984635,206.98,206.75,21.80934982]
[1759242311851,28.48,206.89,206.75,21.80934982]
[1759242312027,31.54,206.89,206.76,13.59559401]
[1759242312228,31.54,206.89,206.75,33.90124824]
[1759242312427,31.54,206.89,206.76,13.59559401]
[1759242312627,31.54,206.89,206.79,20.8]
[1759242312628,35.97145147,206.89,206.79,20.8]
[1759242312932,20.8,206.93,206.8,16.92456479]
[1759242312933,34.96,206.93,206.8,16.92456479]
[1759242313131,34.96,206.93,206.84,20.8]
[1759242313334,4.82975126,207.05,206.89,13.59559401]
[1759242313645,4.43145147,207.0,206.89,13.59559401]
[1759242313822,4.43145147,206.99,206.89,13.59559401]
[1759242314023,4.43145147,207.02,206.89,13.59559401]
[1759242314222,34.98,207.03,206.89,13.59559401]
[1759242314223,39.41145147,207.03,206.89,13.59559401]
[1759242314447,20.8,207.0,206.89,13.59559401]
[1759242314819,25.23145147,207.0,206.89,13.59559401]
[1759242315025,20.8,207.0,206.91,13.59559401]
[1759242315224,34.98,207.03,206.91,34.39559401]
[1759242315829,44.24169802,207.03,206.91,34.39559401]
[1759242316027,39.81024655,207.03,206.91,34.39559401]
[1759242316231,34.98,207.03,206.95,13.59559401]
[1759242316430,35.0,207.07,206.95,13.59559401]
[1759242316832,4.82831176,207.12,206.99,13.59559401]
[1759242316833,35.0,207.12,206.99,13.59559401]
[1759242317032,35.0,207.12,207.01,13.59559401]
[1759242317234,35.0,207.12,207.01,34.39559401]
[1759242317551,4.8277485,207.14,207.01,34.39559401]
[1759242317850,9.25919997,207.14,207.03,13.59559401]
[1759242318148,4.43145147,207.12,207.02,13.59559401]
[1759242318358,9.25919997,207.14,207.02,13.59559401]
[1759242318853,4.43145147,207.13,207.02,13.59559401]
[1759242319152,4.82811896,207.12,207.03,4.83021784]
[1759242319453,20.8,207.13,207.04,13.59559401]
[1759242320168,4.43145147,207.11,207.02,18.42602872]
[1759242320459,4.43145147,207.08,207.02,13.59559401]
[1759242320662,4.43145147,207.05,206.97,18.42721211]
[1759242320850,4.43145147,207.05,206.95,4.83189332]
[1759242321024,4.82975126,207.05,206.97,4.8316181]
[1759242321358,39.43145147,207.11,206.98,34.39559401]
[1759242321565,4.82578901,207.22,207.02,13.59559401]
[1759242321729,4.43145147,207.16,207.02,48.63559401]
[1759242321930,4.43145147,207.15,207.02,48.63559401]
[1759242322370,4.43145147,207.14,207.04,13.59559401]
[1759242322749,4.43145147,207.14,207.02,13.59559401]
[1759242323062,4.82881838,207.09,207.01,18.42616219]
[1759242323267,9.26026985,207.09,207.01,13.59559401]
[1759242323477,4.43145147,207.08,207.01,18.42626514]
[1759242324053,4.82881838,207.09,207.0,4.83090209]
[1759242324361,4.43145147,207.03,206.93,35.04]
[1759242324554,4.43145147,207.02,206.92,35.06]
[1759242324755,4.43145147,207.04,206.93,20.8]
[1759242325255,30.06122829,207.05,206.96,13.59559401]
[1759242325450,4.43145147,207.03,206.96,13.59559401]
[1759242325763,25.23145147,207.05,206.95,13.59559401]
[1759242325948,4.43145147,207.04,206.95,13.59559401]
[1759242326555,30.06126472,207.05,206.95,13.59559401]
[1759242326757,20.8,207.05,206.95,13.59559401]
[1759242327358,20.8,207.05,206.97,13.59559401]
[1759242327567,25.23145147,207.08,206.97,13.59559401]
[1759242327863,20.8,207.08,206.97,13.59559401]
[1759242328057,4.43145147,207.07,206.97,13.59559401]
[1759242328381,4.43145147,207.07,206.97,48.63559401]
[1759242328893,4.43145147,207.11,206.97,48.63559401]
[1759242329176,4.43145147,207.13,207.01,13.59559401]
[1759242329357,20.8,207.12,207.02,16.90657907]
[1759242329560,7.99309939,207.14,207.03,13.59559401]
[1759242329857,4.43145147,207.15,207.03,48.63559401]
[1759242330084,25.23145147,207.13,207.03,48.63559401]
[1759242330397,25.23145147,207.13,207.03,13.59559401]
[1759242330620,4.43145147,207.12,207.03,13.59559401]
[1759242330771,4.43145147,207.08,207.0,13.59559401]
[1759242331090,20.8,207.12,206.98,4.83138467]
[1759242331293,4.43145147,207.04,206.99,13.59559401]
[1759242331672,4.43145147,207.04,206.96,13.59559401]
[1759242332067,4.82995204,207.05,206.96,13.59559401]
[1759242332279,9.26140351,207.05,206.96,13.59559401]
[1759242332582,4.43145147,207.05,206.96,13.59559401]
[1759242332790,4.43145147,207.06,206.96,13.59559401]
[1759242333188,4.43145147,207.05,206.96,13.59559401]
[1759242333392,4.43145147,207.06,206.97,16.91066337]
[1759242333588,4.43145147,207.07,206.97,16.91066337]
[1759242333970,9.26050304,207.08,206.98,13.59559401]
[1759242334188,4.43145147,207.08,206.98,13.59559401]
[1759242334376,4.43145147,207.07,206.98,13.59559401]
[1759242334577,4.43145147,207.04,206.94,20.8]
[1759242334795,25.23145147,207.05,206.95,30.50781518]
[1759242334996,20.8,207.05,206.95,30.50781518]
[1759242335185,65.12029581,207.09,206.95,30.50781518]
[1759242335496,44.32033385,207.09,206.99,13.59559401]
[1759242336207,4.43145147,207.07,206.99,13.59559401]
[1759242336498,4.43145147,207.07,206.98,13.59559401]
[1759242336672,4.43145147,207.08,206.98,13.59559401]
[1759242336868,35.06,207.09,206.98,13.59559401]
[1759242337073,39.49145147,207.09,206.98,13.59559401]
[1759242337486,44.3203666,207.09,206.99,4.83115126]
[1759242337690,4.43145147,207.08,206.99,18.42674527]
[1759242337894,4.43145147,207.07,206.99,18.42674527]
[1759242338091,4.43145147,207.07,206.93,14.47808855]
[1759242338092,4.43145147,207.02,206.93,14.47808855]
[1759242338295,20.8,207.05,206.94,18.42790512]
[1759242338296,23.96805959,207.05,206.94,18.42790512]
[1759242338583,20.8,207.05,206.93,25.6325296]
[1759242338902,4.43145147,207.03,206.94,13.59559401]
[1759242339209,4.43145147,207.04,206.94,13.59559401]
[1759242339577,9.2616228,207.04,206.96,13.59559401]
[1759242339890,20.8,207.04,206.96,13.59559401]
[1759242340602,25.63012364,207.04,206.94,48.67559401]
[1759242340809,30.06157511,207.04,206.94,48.67559401]
[1759242341013,4.43145147,207.03,206.94,13.59559401]
[1759242341181,4.43145147,207.03,206.94,18.42787947]
[1759242341388,4.83012364,207.04,206.94,18.42787947]
[1759242341587,9.26157511,207.04,206.94,30.50867583]
[1759242341892,12.42963462,207.04,206.94,18.42787947]
[1759242342303,33.23874119,207.04,206.94,30.50867583]
[1759242342605,30.06157511,207.04,206.94,30.50867583]
[1759242342908,4.43145147,207.01,206.94,13.59559401]
[1759242343220,4.43145147,206.98,206.91,13.59559401]
[1759242343385,4.43145147,206.97,206.91,13.59559401]
[1759242343585,7.60861755,206.98,206.91,4.83298563]
[1759242343809,8.00853066,206.99,206.91,4.83298563]
[1759242344015,20.8,206.99,206.92,13.59559401]
[1759242344312,3.17716608,206.98,206.92,13.59559401]
[1759242344495,20.8,206.99,206.92,13.59559401]
[1759242344808,23.97716608,206.99,206.92,13.59559401]
[1759242345305,28.80836478,206.99,206.92,13.59559401]
[1759242345680,33.23981625,206.99,206.94,13.59559401]
[1759242345898,30.06265017,206.99,206.9,18.42884678]
[1759242346101,7.60861755,206.98,206.9,18.42884678]
[1759242346620,25.6311987,206.99,206.83,14.27941922]
[1759242346621,20.8,206.96,206.83,14.27941922]
[1759242346821,24.79700977,206.92,206.81,2.52556265]
[1759242347007,4.43145147,206.84,206.74,0.1]
[1759242347323,4.43145147,206.83,206.74,0.1]
[1759242347520,20.8,206.83,206.74,0.1]
[1759242347810,3.17716608,206.82,206.74,0.1]
[1759242348100,20.8,206.83,206.74,0.1]
[1759242348308,3.17716608,206.85,206.76,13.59559401]
[1759242348515,20.8,206.85,206.76,13.59559401]
[1759242348745,20.8,206.85,206.76,48.97559401]
[1759242349012,20.8,206.85,206.76,13.59559401]
[1759242349319,4.43145147,206.82,206.74,13.69559401]
[1759242349617,4.83512232,206.82,206.74,0.1]
[1759242349791,4.43145147,206.75,206.74,0.1]
[1759242349988,3.17716608,206.75,206.74,0.1]
[1759242350190,20.8,206.75,206.74,0.1]
[1759242350432,39.33716608,206.77,206.74,0.1]
[1759242350581,20.8,206.75,206.74,0.1]
[1759242350987,3.17716608,206.76,206.74,0.1]
[1759242351224,20.8,206.77,206.74,0.1]
[1759242351526,4.43145147,206.75,206.74,0.1]
[1759242351731,57.58,206.76,206.74,0.1]
[1759242351907,62.41660954,206.76,206.74,0.1]
[1759242352096,57.58,206.76,206.74,0.1]
[1759242352939,4.43145147,206.75,206.74,0.1]
[1759242353240,7.58716732,206.75,206.74,0.1]
[1759242353446,4.43145147,206.75,206.58,20.8]
[1759242353752,4.83831707,206.69,206.55,4.94136384]
[1759242353909,20.8,206.68,206.56,13.59559401]
[1759242354113,36.96,206.76,206.6,20.8]
[1759242354339,41.39145147,206.76,206.61,13.59559401]
[1759242354639,36.96,206.76,206.65,13.59559401]
[1759242354847,3.15240736,206.81,206.69,13.59559401]
[1759242355050,36.98,206.83,206.69,13.59559401]
[1759242355051,36.98,206.83,206.69,50.61559401]
[1759242355218,41.41145147,206.83,206.69,50.61559401]
[1759242355420,3.15240736,206.85,206.73,13.59559401]
[1759242355626,9.26587254,206.85,206.75,13.59559401]
[1759242355827,4.43145147,206.82,206.75,13.59559401]
[1759242356157,37.0,206.88,206.75,13.59559401]
[1759242356317,4.43145147,206.94,206.79,13.59559401]
[1759242356645,4.43145147,206.91,206.79,13.59559401]
[1759242356824,20.8,206.92,206.79,50.59559401]
[1759242357019,4.43145147,206.92,206.79,13.59559401]
[1759242357316,25.23145147,206.93,206.81,13.59559401]
[1759242357526,3.1570219,206.95,206.8,13.59559401]
[1759242357737,3.1570219,206.95,206.79,36.98]
[1759242357738,35.38,206.96,206.82,13.59559401]
[1759242357934,56.18,206.96,206.82,13.59559401]
[1759242358137,35.38,206.96,206.86,13.59559401]
[1759242358337,36.96,207.0,206.86,13.59559401]
[1759242358514,6.57023241,206.94,206.85,13.59559401]
[1759242358944,20.8,206.97,206.85,13.59559401]
[1759242359145,3.1608517,206.99,206.85,13.59559401]
[1759242359320,3.1608517,207.01,206.89,13.59559401]
[1759242359634,3.99700977,207.07,206.89,13.59559401]
[1759242359635,6.57023241,207.03,206.95,13.59559401]
[1759242360460,29.66296936,207.07,206.95,13.59559401]
[1759242360751,3.99700977,207.1,206.95,13.59559401]
[1759242360752,6.57023241,207.11,206.95,34.39559401]
[1759242360925,7.15997913,207.13,206.97,13.59559401]
[1759242361263,6.57023241,207.05,206.96,13.59559401]
[1759242361548,6.57023241,207.02,206.86,4.83418737]
[1759242361716,25.63010982,207.04,206.87,13.59559401]
[1759242361916,25.63010982,207.04,206.91,13.59559401]
[1759242362245,6.57023241,207.0,206.91,13.59559401]
[1759242362452,6.57023241,206.98,206.86,13.59559401]
[1759242362622,20.8,207.0,206.83,16.92210993]
[1759242362825,20.8,207.03,206.84,56.94]
[1759242363033,20.8,207.05,206.88,34.39559401]
[1759242363229,20.8,207.03,206.88,34.39559401]
[1759242363439,20.8,207.06,206.88,34.39559401]
[1759242363659,36.94,207.09,206.93,34.39559401]
[1759242363962,6.57023241,207.09,206.95,13.59559401]
[1759242364260,20.8,207.07,206.94,13.59559401]
[1759242364422,6.57023241,207.06,206.94,13.59559401]
[1759242364847,6.57023241,207.07,206.94,13.59559401]
[1759242365041,4.82867126,207.1,206.94,13.59559401]
[1759242365042,20.8,207.05,206.94,13.59559401]
[1759242365731,20.8,207.05,206.95,4.83208504]
[1759242365929,4.82958418,207.06,206.95,4.83208504]
[1759242366148,32.19981659,207.06,206.95,4.83208504]
[1759242366324,6.57023241,207.03,206.9,13.59559401]
[1759242366649,6.57023241,207.05,206.9,13.59559401]
[1759242366853,25.62958418,207.06,206.9,13.59559401]
[1759242367147,20.8,207.04,206.94,13.59559401]
[1759242367564,27.37023241,207.04,206.93,13.59559401]
[1759242367752,4.83021784,207.03,206.91,71.65559401]
[1759242368063,20.8,207.02,206.91,34.39559401]
[1759242368943,6.57023241,207.0,206.88,16.9180201]
[1759242369147,6.57023241,206.98,206.89,13.59559401]
[1759242369360,20.8,207.01,206.89,13.59559401]
[1759242369677,6.57023241,207.0,206.91,13.59559401]
[1759242369844,20.8,207.01,206.91,13.59559401]
[1759242370238,6.57023241,207.0,206.91,13.59559401]
[1759242371154,6.57023241,206.99,206.91,13.59559401]
[1759242371370,20.8,207.01,206.91,13.59559401]
[1759242371571,6.57023241,206.95,206.88,13.59559401]
[1759242371775,6.57023241,206.95,206.84,4.83461237]
[1759242371776,6.57023241,206.92,206.84,4.83461237]
[1759242372073,6.57023241,206.91,206.84,13.59559401]
[1759242372279,20.8,206.94,206.84,13.59559401]
[1759242372643,37.16,206.98,206.88,13.59559401]
[1759242373582,6.57023241,206.97,206.88,13.59559401]
[1759242373787,20.8,206.94,206.86,13.59559401]
[1759242374661,27.37023241,206.97,206.86,13.59559401]
[1759242374861,20.8,206.97,206.86,13.59559401]
[1759242375558,3.1744763,207.0,206.86,13.59559401]
[1759242375753,4.8303415,207.03,206.92,13.59559401]
[1759242375952,27.37023241,207.02,206.92,13.59559401]
[1759242376179,6.57023241,207.01,206.92,13.59559401]
[1759242376365,6.57023241,207.0,206.92,13.59559401]
[1759242376565,3.1744763,207.03,206.9,13.59559401]
[1759242376761,6.57023241,206.99,206.9,13.59559401]
[1759242376961,6.57023241,206.98,206.89,18.4290804]
[1759242377159,6.57023241,206.95,206.86,13.59559401]
[1759242377357,20.8,206.98,206.86,13.59559401]
[1759242377562,6.57023241,206.96,206.86,13.59559401]
[1759242377758,6.57023241,206.96,206.73,51.81260362]
[1759242377759,6.57023241,206.92,206.85,13.59559401]
[1759242378058,20.8,206.92,206.85,18.42996876]
[1759242378485,27.37023241,206.93,206.85,18.42996876]
[1759242378686,6.57023241,206.92,206.85,18.42996876]
[1759242378858,6.57023241,206.91,206.84,13.59559401]
[1759242379176,20.8,206.93,206.84,13.59559401]
[1759242379795,20.8,206.93,206.81,13.59559401]
[1759242379955,25.63269385,206.93,206.81,13.59559401]
[1759242380150,32.20292626,206.93,206.81,13.59559401]
[1759242380350,6.57023241,206.91,206.81,13.59559401]
[1759242380555,6.57023241,206.9,206.81,13.59559401]
[1759242380864,6.57023241,206.91,206.81,13.59559401]
[1759242381887,3.1761243,206.92,206.83,13.59559401]
[1759242382075,20.8,206.91,206.83,13.59559401]
[1759242382460,8.01016868,206.95,206.83,13.59559401]
[1759242382779,31.4,206.94,206.83,13.59559401]
[1759242382974,58.77023241,206.94,206.83,13.59559401]
[1759242383274,3.17763707,206.93,206.83,13.59559401]
[1759242383465,9.74786948,206.93,206.83,13.59559401]
[1759242383667,3.17763707,206.93,206.83,13.59559401]
[1759242383872,52.2,206.94,206.85,13.59559401]
[1759242383873,57.03252107,206.94,206.85,13.59559401]
[1759242384066,52.2,206.94,206.85,13.59559401]
[1759242385380,43.51023241,206.98,206.85,13.59559401]
[1759242385581,20.8,206.95,206.85,13.59559401]
[1759242385784,3.17762714,206.97,206.85,13.59559401]
[1759242385964,41.77139713,206.98,206.87,13.59559401]
[1759242386462,20.8,206.95,206.81,13.59559401]
[1759242386665,6.57023241,206.92,206.81,13.59559401]
[1759242386864,20.8,206.92,206.76,4.83652544]
[1759242387164,6.57023241,206.86,206.77,13.59559401]
[1759242387479,36.86,206.91,206.77,13.59559401]
[1759242387480,6.57023241,206.87,206.77,13.59559401]
[1759242387779,6.57023241,206.84,206.74,4.83699332]
[1759242387982,20.8,206.79,206.69,14.1844093]
[1759242388296,6.57023241,206.82,206.68,13.59559401]
[1759242388488,3.17842504,206.83,206.68,13.59559401]
[1759242388489,23.97842504,206.83,206.72,13.59559401]
[1759242388801,6.57023241,206.82,206.72,13.59559401]
[1759242388974,6.57023241,206.78,206.66,41.13035902]
[1759242389166,6.57023241,206.78,206.67,13.59559401]
[1759242389368,6.57023241,206.78,206.66,37.73603018]
[1759242389872,6.57023241,206.76,206.68,4.83839752]
[1759242390586,28.81426348,206.79,206.69,13.59559401]
[1759242390787,6.57023241,206.78,206.67,4.83862507]
[1759242390989,6.57023241,206.77,206.68,13.59559401]
[1759242391811,3.17842504,206.78,206.68,13.59559401]
[1759242392000,25.63589521,206.79,206.69,4.83816343]
[1759242392190,25.63589521,206.79,206.7,13.59559401]
[1759242392800,6.57023241,206.75,206.69,13.59559401]
[1759242392984,6.57023241,206.76,206.69,13.59559401]
[1759242393499,36.8,206.77,206.66,18.43425988]
[1759242393500,6.57023241,206.74,206.66,18.43425988]
[1759242394087,4.8372273,206.73,206.65,13.59559401]
[1759242394279,4.8372273,206.73,206.58,34.84]
[1759242394280,6.57023241,206.7,206.59,12.10099513]
[1759242394602,6.57023241,206.7,206.6,18.43586506]
[1759242395682,57.56,206.7,206.6,30.53654269]
[1759242396098,11.40839584,206.69,206.6,18.43586506]
[1759242396303,57.56,206.7,206.6,30.53654269]
[1759242397098,20.8,206.7,206.6,30.53654269]
[1759242397605,3.16710056,206.78,206.6,30.53654269]
[1759242397606,43.31023241,206.75,206.6,30.53654269]
[1759242397804,36.74,206.75,206.6,30.53654269]
[1759242398007,36.74,206.75,206.65,16.93684973]
[1759242398183,36.74,206.75,206.66,13.59559401]
[1759242398913,4.83488855,206.83,206.66,13.59559401]
[1759242399112,6.57023241,206.77,206.66,13.59559401]
[1759242399281,3.16743322,206.8,206.66,13.59559401]
[1759242399479,4.83475437,206.84,206.66,13.59559401]
[1759242399679,6.57023241,206.82,206.66,13.59559401]
[1759242399891,20.8,206.82,206.66,13.59559401]
[1759242400101,20.8,206.82,206.68,13.59559401]
[1759242400308,25.63513144,206.82,206.68,13.59559401]
[1759242400509,20.8,206.82,206.68,13.59559401]
[1759242400694,32.20535859,206.82,206.68,13.59559401]
[1759242400895,6.57023241,206.81,206.68,13.59559401]
[1759242401199,3.16743322,206.83,206.68,13.59559401]
[1759242401504,11.40512298,206.83,206.68,13.59559401]
[1759242401696,4.83489057,206.83,206.68,13.59559401]
[1759242402101,9.73766563,206.84,206.7,13.59559401]
[1759242402301,14.57234114,206.84,206.7,13.59559401]
[1759242402500,6.57023241,206.82,206.7,13.59559401]
[1759242402693,6.57023241,206.78,206.7,13.59559401]
[1759242402888,6.57023241,206.79,206.7,13.59559401]
[1759242403090,20.8,206.81,206.7,13.59559401]
[1759242403291,14.57234114,206.84,206.7,13.59559401]
[1759242403603,32.20490792,206.84,206.7,13.59559401]